{"text_format":"1","workbook":"xlsx","n_sheets":4,"sheets":["Комплектация","Расход","ноябрь_компл","Лист1"],"not_rendered":{"charts":0,"images":1,"macros":1,"external_links":1,"defined_names":28,"comments":0,"pivot_tables":0},"unopened":[],"bounds":{"document_bytes":16777216,"sheet_cells":100000,"rows_first":2000,"rows_last":500,"rows_between":2000,"halvings":0,"cell_chars":16384,"cell_head_chars":4096},"cells_cut":0,"cells_raw":0,"read":"whole","date_system":"1900"}

{"sheet":"Комплектация","index":0,"n_rows":15,"n_cols":30,"rows_kept":15,"cut":false,"hidden":false,"merged":[]}
[null,null,null,null,null,{"$f":"[1]План!F1","v":"2016-11-01"},{"$f":"WORKDAY(F$1,1)","v":"2016-11-02"},{"$f":"WORKDAY(G$1,1)","v":"2016-11-03"},"2016-11-04","2016-11-07","2016-11-08","2016-11-09","2016-11-10","2016-11-11","2016-11-14","2016-11-15","2016-11-16","2016-11-17","2016-11-18","2016-11-21","2016-11-22","2016-11-23","2016-11-24",{"$f":"WORKDAY(W$1,1)","v":"2016-11-25"},{"$f":"WORKDAY(X$1,1)","v":"2016-11-28"},"2016-11-29","2016-11-30","2016-12-01",{"$f":"TEXT(EOMONTH($F$1,1),\"ММММ\")","v":"Декабрь"},{"$f":"TEXT(EOMONTH($F$1,2),\"ММММ\")","v":"Январь"}]
[null,null,null,null,null,{"$f":"F1","v":"2016-11-01"},{"$f":"G1","v":"2016-11-02"},{"$f":"H1","v":"2016-11-03"},"2016-11-04","2016-11-07","2016-11-08","2016-11-09","2016-11-10","2016-11-11","2016-11-14","2016-11-15","2016-11-16","2016-11-17","2016-11-18","2016-11-21","2016-11-22","2016-11-23","2016-11-24",{"$f":"X1","v":"2016-11-25"},{"$f":"Y1","v":"2016-11-28"},"2016-11-29","2016-11-30","2016-12-01","Декабрь","Январь"]
[null,null,"ФКГП 125.00.000","Окно с форточкой широкое ФТШ-2П-1200х875"]
[null,null,"ФКГП 125.00.001","Окно с форточкой узкое ФУ-2П-620х875"]
[null,null,"ФКГП 125.00.002","Окно аварийный выход АВШ2 1200х875"]
[null,null,"ФКГП 125.00.003","Замок"]
[null,null,"ФКГП 125.00.004","Замок"]
[null,null,"ФКГП 125.00.005"]
[null,null,"ФКГП 125.00.006","Резиновое уплотнение"]
[null,null,"ФКГП 125.00.007","Резиновое уплотнение"]
[null,null,"ФКГП 125.00.008","Резиновое уплотнение"]
[null,null,"ФКГП 125.00.009","Резиновое уплотнение"]
[null,null,"ФКГП 125.00.010","Резиновое уплотнение",null,null,null,null,10]
[null,null,"ФКГП 125.00.011","Резиновое уплотнение"]
[null,null,"ФКГП 125.00.012","Резиновое уплотнение"]

{"sheet":"Расход","index":1,"n_rows":30,"n_cols":34,"rows_kept":30,"cut":false,"hidden":false,"merged":[]}
[null,null,null,"наименование","материал",{"$f":"\"План \"&TEXT($J$1,\"[$-419]ММММ;@\")","v":"План Ноябрь"},{"$f":"\"Выдано в производство \"&TEXT($J$1,\"[$-419]ММММ;@\")","v":"Выдано в производство Ноябрь"},{"$f":"\"Осталось на складе на \"&TEXT(EOMONTH($J$1,0),\"[$-419]ДД ММММ ГГГГ\")","v":"Осталось на складе на 30 Ноябрь 2016"},{"$f":"\"Приход \"&TEXT($J$1,\"[$-419]ММММ;@\")","v":"Приход Ноябрь"},"2016-11-01",{"$f":"WORKDAY(J$1,1)","v":"2016-11-02"},{"$f":"WORKDAY(K$1,1)","v":"2016-11-03"},"2016-11-04","2016-11-07","2016-11-08","2016-11-09","2016-11-10","2016-11-11","2016-11-14","2016-11-15","2016-11-16","2016-11-17","2016-11-18","2016-11-21","2016-11-22","2016-11-23","2016-11-24","2016-11-25","2016-11-28","2016-11-29","2016-11-30","2016-12-01",{"$f":"WORKDAY(AF$1,1)","v":"2016-12-02"},"2016-12-05"]
[]
[null,4561,"ФКГП 125.05.045","деталь1","БТ-ПВ-0-3",null,{"$f":"SUM(J3:AF3)","v":40},null,null,null,null,null,null,null,null,40]
[null,61,"ФКГП 125.05.046","деталь2","БТ-ПВ-0-3",null,{"$f":"SUM(J4:AF4)","v":0}]
[null,3061,"ФКГП 125.05.047","деталь3","ПА-36",null,25,null,null,null,null,null,null,null,null,25]
[null,61,"ФКГП 125.05.048","деталь4","ПЭНД =2,0",null,60,null,null,null,null,null,null,null,null,60]
[null,61,"ФКГП 125.05.049","деталь5","ПЭНД =1,2",null,30,null,null,null,null,null,null,null,null,30]
[null,61,"ФКГП 125.05.050","деталь6","БТ-ПН-0-1",null,20,null,null,null,null,null,null,null,null,20]
[null,400,"ФКГП 125.05.051","деталь7","Труба 5 вх 0,5",null,30,null,null,null,null,null,null,null,null,30]
[null,30,"ФКГП 125.05.052","деталь8","RAL 1019",null,0]
[null,30,"ФКГП 125.05.053","деталь9","RAL 1019",null,0]
[null,30,"ФКГП 125.05.054","деталь10","RAL 9005",null,10,null,null,null,null,null,null,null,null,10]
[null,30,"ФКГП 125.05.055","деталь11","RAL 9005",null,10,null,null,null,null,null,null,null,null,10]
[null,null,"ФКГП 125.05.056","деталь12","RAL 1019",null,0]
[null,null,"ФКГП 125.05.057","деталь13","RAL 1019",null,0]
[null,10,"ФКГП 125.05.058","деталь14","RAL 1019",null,0]
[null,null,"ФКГП 125.05.059","деталь15","RAL 9005",null,10,null,null,null,null,null,null,null,null,10]
[null,null,"ФКГП 125.05.060","деталь16","RAL 9005",null,10,null,null,null,null,null,null,null,null,10]
[null,10,"ФКГП 125.05.061","деталь17","RAL 9005",null,20,null,null,null,null,null,null,null,null,20]
[null,400,"ФКГП 125.05.062","деталь18","Проволока Б-2-3,5",null,30,null,null,null,null,null,null,null,null,30]
[null,61,"ФКГП 125.05.063","деталь19","БТ-БШ-БД-ПВ-0-205",null,0]
[null,400,"ФКГП 125.05.064","деталь20","пр Б-2-0,5",null,0]
[null,400,"ФКГП 125.05.065","деталь21","пр Б-2-1",null,0]
[null,6110,"ФКГП 125.05.066","деталь22","Ст3",null,0]
[null,6110,"ФКГП 125.05.067","деталь23","Ст3",null,0]
[null,10,"ФКГП 125.05.068","деталь24","12Х18Н10Т ф4",null,0]
[null,400,"ФКГП 125.05.069","деталь25","12Х13",null,0]
[null,61,"ФКГП 125.05.070","деталь26","Фтор-4",null,0]
[null,30,"ФКГП 125.05.071","деталь27","ПР-202",null,0]
[null,61,"ФКГП 125.05.072","деталь28",null,null,0]

{"sheet":"ноябрь_компл","index":2,"n_rows":59,"n_cols":20,"rows_kept":59,"cut":false,"hidden":false,"merged":[]}
[null,null,null,"КМТ 7.4.09 Ф"]
[null,null,null,null,"Производственное задание участкам"]
[null,null,null,"на месяц_____________ от______________",null,{"$f":"TODAY()","v":"2016-11-10"}]
[null,null,null,null,"на изготовление деталей по заказу№008_______"]
[]
[null,null,null,null,null,null,"2016-11-01",{"$f":"SUMPRODUCT(Комплектация!$F$3:$AD$19*(Комплектация!$F$1:$AD$1=ноябрь_компл!$G6)*(ноябрь_компл!H$33=Комплектация!$C$3:$C$19))","v":0},{"$f":"SUMPRODUCT(Комплектация!$F$3:$AD$19*(Комплектация!$F$1:$AD$1=ноябрь_компл!$G6)*(ноябрь_компл!I$33=Комплектация!$C$3:$C$19))","v":0},{"$f":"SUMPRODUCT(Комплектация!$F$3:$AD$19*(Комплектация!$F$1:$AD$1=ноябрь_компл!$G6)*(ноябрь_компл!J$33=Комплектация!$C$3:$C$19))","v":0},{"$f":"SUMPRODUCT(Комплектация!$F$3:$AD$19*(Комплектация!$F$1:$AD$1=ноябрь_компл!$G6)*(ноябрь_компл!K$33=Комплектация!$C$3:$C$19))","v":0},{"$f":"SUMPRODUCT(Комплектация!$F$3:$AD$19*(Комплектация!$F$1:$AD$1=ноябрь_компл!$G6)*(ноябрь_компл!L$33=Комплектация!$C$3:$C$19))","v":0},{"$f":"SUMPRODUCT(Комплектация!$F$3:$AD$19*(Комплектация!$F$1:$AD$1=ноябрь_компл!$G6)*(ноябрь_компл!M$33=Комплектация!$C$3:$C$19))","v":0},{"$f":"SUMPRODUCT(Комплектация!$F$3:$AD$19*(Комплектация!$F$1:$AD$1=ноябрь_компл!$G6)*(ноябрь_компл!N$33=Комплектация!$C$3:$C$19))","v":0},{"$f":"SUMPRODUCT(Комплектация!$F$3:$AD$19*(Комплектация!$F$1:$AD$1=ноябрь_компл!$G6)*(ноябрь_компл!O$33=Комплектация!$C$3:$C$19))","v":0},{"$f":"SUMPRODUCT(Комплектация!$F$3:$AD$19*(Комплектация!$F$1:$AD$1=ноябрь_компл!$G6)*(ноябрь_компл!P$33=Комплектация!$C$3:$C$19))","v":0},{"$f":"SUMPRODUCT(Комплектация!$F$3:$AD$19*(Комплектация!$F$1:$AD$1=ноябрь_компл!$G6)*(ноябрь_компл!Q$33=Комплектация!$C$3:$C$19))","v":0},{"$f":"SUMPRODUCT(Комплектация!$F$3:$AD$19*(Комплектация!$F$1:$AD$1=ноябрь_компл!$G6)*(ноябрь_компл!R$33=Комплектация!$C$3:$C$19))","v":0},{"$f":"SUMPRODUCT(Комплектация!$F$3:$AD$19*(Комплектация!$F$1:$AD$1=ноябрь_компл!$G6)*(ноябрь_компл!S$33=Комплектация!$C$3:$C$19))","v":0},{"$f":"SUMPRODUCT(Комплектация!$F$3:$AD$19*(Комплектация!$F$1:$AD$1=ноябрь_компл!$G6)*(ноябрь_компл!T$33=Комплектация!$C$3:$C$19))","v":0}]
[null,null,null,null,null,null,{"$f":"WORKDAY($G6,1)","v":"2016-11-02"},{"$f":"SUMPRODUCT(Комплектация!$F$3:$AD$19*(Комплектация!$F$1:$AD$1=ноябрь_компл!$G7)*(ноябрь_компл!H$33=Комплектация!$C$3:$C$19))","v":0},{"$f":"SUMPRODUCT(Комплектация!$F$3:$AD$19*(Комплектация!$F$1:$AD$1=ноябрь_компл!$G7)*(ноябрь_компл!I$33=Комплектация!$C$3:$C$19))","v":0},{"$f":"SUMPRODUCT(Комплектация!$F$3:$AD$19*(Комплектация!$F$1:$AD$1=ноябрь_компл!$G7)*(ноябрь_компл!J$33=Комплектация!$C$3:$C$19))","v":0},{"$f":"SUMPRODUCT(Комплектация!$F$3:$AD$19*(Комплектация!$F$1:$AD$1=ноябрь_компл!$G7)*(ноябрь_компл!K$33=Комплектация!$C$3:$C$19))","v":0},{"$f":"SUMPRODUCT(Комплектация!$F$3:$AD$19*(Комплектация!$F$1:$AD$1=ноябрь_компл!$G7)*(ноябрь_компл!L$33=Комплектация!$C$3:$C$19))","v":0},{"$f":"SUMPRODUCT(Комплектация!$F$3:$AD$19*(Комплектация!$F$1:$AD$1=ноябрь_компл!$G7)*(ноябрь_компл!M$33=Комплектация!$C$3:$C$19))","v":0},{"$f":"SUMPRODUCT(Комплектация!$F$3:$AD$19*(Комплектация!$F$1:$AD$1=ноябрь_компл!$G7)*(ноябрь_компл!N$33=Комплектация!$C$3:$C$19))","v":0},{"$f":"SUMPRODUCT(Комплектация!$F$3:$AD$19*(Комплектация!$F$1:$AD$1=ноябрь_компл!$G7)*(ноябрь_компл!O$33=Комплектация!$C$3:$C$19))","v":0},{"$f":"SUMPRODUCT(Комплектация!$F$3:$AD$19*(Комплектация!$F$1:$AD$1=ноябрь_компл!$G7)*(ноябрь_компл!P$33=Комплектация!$C$3:$C$19))","v":0},{"$f":"SUMPRODUCT(Комплектация!$F$3:$AD$19*(Комплектация!$F$1:$AD$1=ноябрь_компл!$G7)*(ноябрь_компл!Q$33=Комплектация!$C$3:$C$19))","v":0},{"$f":"SUMPRODUCT(Комплектация!$F$3:$AD$19*(Комплектация!$F$1:$AD$1=ноябрь_компл!$G7)*(ноябрь_компл!R$33=Комплектация!$C$3:$C$19))","v":0},{"$f":"SUMPRODUCT(Комплектация!$F$3:$AD$19*(Комплектация!$F$1:$AD$1=ноябрь_компл!$G7)*(ноябрь_компл!S$33=Комплектация!$C$3:$C$19))","v":0},{"$f":"SUMPRODUCT(Комплектация!$F$3:$AD$19*(Комплектация!$F$1:$AD$1=ноябрь_компл!$G7)*(ноябрь_компл!T$33=Комплектация!$C$3:$C$19))","v":0}]
[null,null,null,null,null,null,{"$f":"WORKDAY($G7,1)","v":"2016-11-03"},{"$f":"SUMPRODUCT(Комплектация!$F$3:$AD$19*(Комплектация!$F$1:$AD$1=ноябрь_компл!$G8)*(ноябрь_компл!H$33=Комплектация!$C$3:$C$19))","v":0},{"$f":"SUMPRODUCT(Комплектация!$F$3:$AD$19*(Комплектация!$F$1:$AD$1=ноябрь_компл!$G8)*(ноябрь_компл!I$33=Комплектация!$C$3:$C$19))","v":0},{"$f":"SUMPRODUCT(Комплектация!$F$3:$AD$19*(Комплектация!$F$1:$AD$1=ноябрь_компл!$G8)*(ноябрь_компл!J$33=Комплектация!$C$3:$C$19))","v":0},{"$f":"SUMPRODUCT(Комплектация!$F$3:$AD$19*(Комплектация!$F$1:$AD$1=ноябрь_компл!$G8)*(ноябрь_компл!K$33=Комплектация!$C$3:$C$19))","v":0},{"$f":"SUMPRODUCT(Комплектация!$F$3:$AD$19*(Комплектация!$F$1:$AD$1=ноябрь_компл!$G8)*(ноябрь_компл!L$33=Комплектация!$C$3:$C$19))","v":0},{"$f":"SUMPRODUCT(Комплектация!$F$3:$AD$19*(Комплектация!$F$1:$AD$1=ноябрь_компл!$G8)*(ноябрь_компл!M$33=Комплектация!$C$3:$C$19))","v":0},{"$f":"SUMPRODUCT(Комплектация!$F$3:$AD$19*(Комплектация!$F$1:$AD$1=ноябрь_компл!$G8)*(ноябрь_компл!N$33=Комплектация!$C$3:$C$19))","v":0},{"$f":"SUMPRODUCT(Комплектация!$F$3:$AD$19*(Комплектация!$F$1:$AD$1=ноябрь_компл!$G8)*(ноябрь_компл!O$33=Комплектация!$C$3:$C$19))","v":0},{"$f":"SUMPRODUCT(Комплектация!$F$3:$AD$19*(Комплектация!$F$1:$AD$1=ноябрь_компл!$G8)*(ноябрь_компл!P$33=Комплектация!$C$3:$C$19))","v":0},{"$f":"SUMPRODUCT(Комплектация!$F$3:$AD$19*(Комплектация!$F$1:$AD$1=ноябрь_компл!$G8)*(ноябрь_компл!Q$33=Комплектация!$C$3:$C$19))","v":0},{"$f":"SUMPRODUCT(Комплектация!$F$3:$AD$19*(Комплектация!$F$1:$AD$1=ноябрь_компл!$G8)*(ноябрь_компл!R$33=Комплектация!$C$3:$C$19))","v":0},{"$f":"SUMPRODUCT(Комплектация!$F$3:$AD$19*(Комплектация!$F$1:$AD$1=ноябрь_компл!$G8)*(ноябрь_компл!S$33=Комплектация!$C$3:$C$19))","v":0},{"$f":"SUMPRODUCT(Комплектация!$F$3:$AD$19*(Комплектация!$F$1:$AD$1=ноябрь_компл!$G8)*(ноябрь_компл!T$33=Комплектация!$C$3:$C$19))","v":0}]
[null,null,null,null,null,null,"2016-11-04",{"$f":"SUMPRODUCT(Комплектация!$F$3:$AD$19*(Комплектация!$F$1:$AD$1=ноябрь_компл!$G9)*(ноябрь_компл!H$33=Комплектация!$C$3:$C$19))","v":0},{"$f":"SUMPRODUCT(Комплектация!$F$3:$AD$19*(Комплектация!$F$1:$AD$1=ноябрь_компл!$G9)*(ноябрь_компл!I$33=Комплектация!$C$3:$C$19))","v":0},{"$f":"SUMPRODUCT(Комплектация!$F$3:$AD$19*(Комплектация!$F$1:$AD$1=ноябрь_компл!$G9)*(ноябрь_компл!J$33=Комплектация!$C$3:$C$19))","v":0},{"$f":"SUMPRODUCT(Комплектация!$F$3:$AD$19*(Комплектация!$F$1:$AD$1=ноябрь_компл!$G9)*(ноябрь_компл!K$33=Комплектация!$C$3:$C$19))","v":0},{"$f":"SUMPRODUCT(Комплектация!$F$3:$AD$19*(Комплектация!$F$1:$AD$1=ноябрь_компл!$G9)*(ноябрь_компл!L$33=Комплектация!$C$3:$C$19))","v":0},{"$f":"SUMPRODUCT(Комплектация!$F$3:$AD$19*(Комплектация!$F$1:$AD$1=ноябрь_компл!$G9)*(ноябрь_компл!M$33=Комплектация!$C$3:$C$19))","v":0},{"$f":"SUMPRODUCT(Комплектация!$F$3:$AD$19*(Комплектация!$F$1:$AD$1=ноябрь_компл!$G9)*(ноябрь_компл!N$33=Комплектация!$C$3:$C$19))","v":0},{"$f":"SUMPRODUCT(Комплектация!$F$3:$AD$19*(Комплектация!$F$1:$AD$1=ноябрь_компл!$G9)*(ноябрь_компл!O$33=Комплектация!$C$3:$C$19))","v":0},{"$f":"SUMPRODUCT(Комплектация!$F$3:$AD$19*(Комплектация!$F$1:$AD$1=ноябрь_компл!$G9)*(ноябрь_компл!P$33=Комплектация!$C$3:$C$19))","v":0},{"$f":"SUMPRODUCT(Комплектация!$F$3:$AD$19*(Комплектация!$F$1:$AD$1=ноябрь_компл!$G9)*(ноябрь_компл!Q$33=Комплектация!$C$3:$C$19))","v":0},{"$f":"SUMPRODUCT(Комплектация!$F$3:$AD$19*(Комплектация!$F$1:$AD$1=ноябрь_компл!$G9)*(ноябрь_компл!R$33=Комплектация!$C$3:$C$19))","v":10},{"$f":"SUMPRODUCT(Комплектация!$F$3:$AD$19*(Комплектация!$F$1:$AD$1=ноябрь_компл!$G9)*(ноябрь_компл!S$33=Комплектация!$C$3:$C$19))","v":0},{"$f":"SUMPRODUCT(Комплектация!$F$3:$AD$19*(Комплектация!$F$1:$AD$1=ноябрь_компл!$G9)*(ноябрь_компл!T$33=Комплектация!$C$3:$C$19))","v":0}]
[null,null,null,null,null,null,"2016-11-07",{"$f":"SUMPRODUCT(Комплектация!$F$3:$AD$19*(Комплектация!$F$1:$AD$1=ноябрь_компл!$G10)*(ноябрь_компл!H$33=Комплектация!$C$3:$C$19))","v":0},{"$f":"SUMPRODUCT(Комплектация!$F$3:$AD$19*(Комплектация!$F$1:$AD$1=ноябрь_компл!$G10)*(ноябрь_компл!I$33=Комплектация!$C$3:$C$19))","v":0},{"$f":"SUMPRODUCT(Комплектация!$F$3:$AD$19*(Комплектация!$F$1:$AD$1=ноябрь_компл!$G10)*(ноябрь_компл!J$33=Комплектация!$C$3:$C$19))","v":0},{"$f":"SUMPRODUCT(Комплектация!$F$3:$AD$19*(Комплектация!$F$1:$AD$1=ноябрь_компл!$G10)*(ноябрь_компл!K$33=Комплектация!$C$3:$C$19))","v":0},{"$f":"SUMPRODUCT(Комплектация!$F$3:$AD$19*(Комплектация!$F$1:$AD$1=ноябрь_компл!$G10)*(ноябрь_компл!L$33=Комплектация!$C$3:$C$19))","v":0},{"$f":"SUMPRODUCT(Комплектация!$F$3:$AD$19*(Комплектация!$F$1:$AD$1=ноябрь_компл!$G10)*(ноябрь_компл!M$33=Комплектация!$C$3:$C$19))","v":0},{"$f":"SUMPRODUCT(Комплектация!$F$3:$AD$19*(Комплектация!$F$1:$AD$1=ноябрь_компл!$G10)*(ноябрь_компл!N$33=Комплектация!$C$3:$C$19))","v":0},{"$f":"SUMPRODUCT(Комплектация!$F$3:$AD$19*(Комплектация!$F$1:$AD$1=ноябрь_компл!$G10)*(ноябрь_компл!O$33=Комплектация!$C$3:$C$19))","v":0},{"$f":"SUMPRODUCT(Комплектация!$F$3:$AD$19*(Комплектация!$F$1:$AD$1=ноябрь_компл!$G10)*(ноябрь_компл!P$33=Комплектация!$C$3:$C$19))","v":0},{"$f":"SUMPRODUCT(Комплектация!$F$3:$AD$19*(Комплектация!$F$1:$AD$1=ноябрь_компл!$G10)*(ноябрь_компл!Q$33=Комплектация!$C$3:$C$19))","v":0},{"$f":"SUMPRODUCT(Комплектация!$F$3:$AD$19*(Комплектация!$F$1:$AD$1=ноябрь_компл!$G10)*(ноябрь_компл!R$33=Комплектация!$C$3:$C$19))","v":0},{"$f":"SUMPRODUCT(Комплектация!$F$3:$AD$19*(Комплектация!$F$1:$AD$1=ноябрь_компл!$G10)*(ноябрь_компл!S$33=Комплектация!$C$3:$C$19))","v":0},{"$f":"SUMPRODUCT(Комплектация!$F$3:$AD$19*(Комплектация!$F$1:$AD$1=ноябрь_компл!$G10)*(ноябрь_компл!T$33=Комплектация!$C$3:$C$19))","v":0}]
[null,null,null,null,null,null,"2016-11-08",{"$f":"SUMPRODUCT(Комплектация!$F$3:$AD$19*(Комплектация!$F$1:$AD$1=ноябрь_компл!$G11)*(ноябрь_компл!H$33=Комплектация!$C$3:$C$19))","v":0},{"$f":"SUMPRODUCT(Комплектация!$F$3:$AD$19*(Комплектация!$F$1:$AD$1=ноябрь_компл!$G11)*(ноябрь_компл!I$33=Комплектация!$C$3:$C$19))","v":0},{"$f":"SUMPRODUCT(Комплектация!$F$3:$AD$19*(Комплектация!$F$1:$AD$1=ноябрь_компл!$G11)*(ноябрь_компл!J$33=Комплектация!$C$3:$C$19))","v":0},{"$f":"SUMPRODUCT(Комплектация!$F$3:$AD$19*(Комплектация!$F$1:$AD$1=ноябрь_компл!$G11)*(ноябрь_компл!K$33=Комплектация!$C$3:$C$19))","v":0},{"$f":"SUMPRODUCT(Комплектация!$F$3:$AD$19*(Комплектация!$F$1:$AD$1=ноябрь_компл!$G11)*(ноябрь_компл!L$33=Комплектация!$C$3:$C$19))","v":0},{"$f":"SUMPRODUCT(Комплектация!$F$3:$AD$19*(Комплектация!$F$1:$AD$1=ноябрь_компл!$G11)*(ноябрь_компл!M$33=Комплектация!$C$3:$C$19))","v":0},{"$f":"SUMPRODUCT(Комплектация!$F$3:$AD$19*(Комплектация!$F$1:$AD$1=ноябрь_компл!$G11)*(ноябрь_компл!N$33=Комплектация!$C$3:$C$19))","v":0},{"$f":"SUMPRODUCT(Комплектация!$F$3:$AD$19*(Комплектация!$F$1:$AD$1=ноябрь_компл!$G11)*(ноябрь_компл!O$33=Комплектация!$C$3:$C$19))","v":0},{"$f":"SUMPRODUCT(Комплектация!$F$3:$AD$19*(Комплектация!$F$1:$AD$1=ноябрь_компл!$G11)*(ноябрь_компл!P$33=Комплектация!$C$3:$C$19))","v":0},{"$f":"SUMPRODUCT(Комплектация!$F$3:$AD$19*(Комплектация!$F$1:$AD$1=ноябрь_компл!$G11)*(ноябрь_компл!Q$33=Комплектация!$C$3:$C$19))","v":0},{"$f":"SUMPRODUCT(Комплектация!$F$3:$AD$19*(Комплектация!$F$1:$AD$1=ноябрь_компл!$G11)*(ноябрь_компл!R$33=Комплектация!$C$3:$C$19))","v":0},{"$f":"SUMPRODUCT(Комплектация!$F$3:$AD$19*(Комплектация!$F$1:$AD$1=ноябрь_компл!$G11)*(ноябрь_компл!S$33=Комплектация!$C$3:$C$19))","v":0},{"$f":"SUMPRODUCT(Комплектация!$F$3:$AD$19*(Комплектация!$F$1:$AD$1=ноябрь_компл!$G11)*(ноябрь_компл!T$33=Комплектация!$C$3:$C$19))","v":0}]
[null,null,null,null,null,null,"2016-11-09",{"$f":"SUMPRODUCT(Комплектация!$F$3:$AD$19*(Комплектация!$F$1:$AD$1=ноябрь_компл!$G12)*(ноябрь_компл!H$33=Комплектация!$C$3:$C$19))","v":0},{"$f":"SUMPRODUCT(Комплектация!$F$3:$AD$19*(Комплектация!$F$1:$AD$1=ноябрь_компл!$G12)*(ноябрь_компл!I$33=Комплектация!$C$3:$C$19))","v":0},{"$f":"SUMPRODUCT(Комплектация!$F$3:$AD$19*(Комплектация!$F$1:$AD$1=ноябрь_компл!$G12)*(ноябрь_компл!J$33=Комплектация!$C$3:$C$19))","v":0},{"$f":"SUMPRODUCT(Комплектация!$F$3:$AD$19*(Комплектация!$F$1:$AD$1=ноябрь_компл!$G12)*(ноябрь_компл!K$33=Комплектация!$C$3:$C$19))","v":0},{"$f":"SUMPRODUCT(Комплектация!$F$3:$AD$19*(Комплектация!$F$1:$AD$1=ноябрь_компл!$G12)*(ноябрь_компл!L$33=Комплектация!$C$3:$C$19))","v":0},{"$f":"SUMPRODUCT(Комплектация!$F$3:$AD$19*(Комплектация!$F$1:$AD$1=ноябрь_компл!$G12)*(ноябрь_компл!M$33=Комплектация!$C$3:$C$19))","v":0},{"$f":"SUMPRODUCT(Комплектация!$F$3:$AD$19*(Комплектация!$F$1:$AD$1=ноябрь_компл!$G12)*(ноябрь_компл!N$33=Комплектация!$C$3:$C$19))","v":0},{"$f":"SUMPRODUCT(Комплектация!$F$3:$AD$19*(Комплектация!$F$1:$AD$1=ноябрь_компл!$G12)*(ноябрь_компл!O$33=Комплектация!$C$3:$C$19))","v":0},{"$f":"SUMPRODUCT(Комплектация!$F$3:$AD$19*(Комплектация!$F$1:$AD$1=ноябрь_компл!$G12)*(ноябрь_компл!P$33=Комплектация!$C$3:$C$19))","v":0},{"$f":"SUMPRODUCT(Комплектация!$F$3:$AD$19*(Комплектация!$F$1:$AD$1=ноябрь_компл!$G12)*(ноябрь_компл!Q$33=Комплектация!$C$3:$C$19))","v":0},{"$f":"SUMPRODUCT(Комплектация!$F$3:$AD$19*(Комплектация!$F$1:$AD$1=ноябрь_компл!$G12)*(ноябрь_компл!R$33=Комплектация!$C$3:$C$19))","v":0},{"$f":"SUMPRODUCT(Комплектация!$F$3:$AD$19*(Комплектация!$F$1:$AD$1=ноябрь_компл!$G12)*(ноябрь_компл!S$33=Комплектация!$C$3:$C$19))","v":0},{"$f":"SUMPRODUCT(Комплектация!$F$3:$AD$19*(Комплектация!$F$1:$AD$1=ноябрь_компл!$G12)*(ноябрь_компл!T$33=Комплектация!$C$3:$C$19))","v":0}]
[null,null,null,null,null,null,"2016-11-10",{"$f":"SUMPRODUCT(Комплектация!$F$3:$AD$19*(Комплектация!$F$1:$AD$1=ноябрь_компл!$G13)*(ноябрь_компл!H$33=Комплектация!$C$3:$C$19))","v":0},{"$f":"SUMPRODUCT(Комплектация!$F$3:$AD$19*(Комплектация!$F$1:$AD$1=ноябрь_компл!$G13)*(ноябрь_компл!I$33=Комплектация!$C$3:$C$19))","v":0},{"$f":"SUMPRODUCT(Комплектация!$F$3:$AD$19*(Комплектация!$F$1:$AD$1=ноябрь_компл!$G13)*(ноябрь_компл!J$33=Комплектация!$C$3:$C$19))","v":0},{"$f":"SUMPRODUCT(Комплектация!$F$3:$AD$19*(Комплектация!$F$1:$AD$1=ноябрь_компл!$G13)*(ноябрь_компл!K$33=Комплектация!$C$3:$C$19))","v":0},{"$f":"SUMPRODUCT(Комплектация!$F$3:$AD$19*(Комплектация!$F$1:$AD$1=ноябрь_компл!$G13)*(ноябрь_компл!L$33=Комплектация!$C$3:$C$19))","v":0},{"$f":"SUMPRODUCT(Комплектация!$F$3:$AD$19*(Комплектация!$F$1:$AD$1=ноябрь_компл!$G13)*(ноябрь_компл!M$33=Комплектация!$C$3:$C$19))","v":0},{"$f":"SUMPRODUCT(Комплектация!$F$3:$AD$19*(Комплектация!$F$1:$AD$1=ноябрь_компл!$G13)*(ноябрь_компл!N$33=Комплектация!$C$3:$C$19))","v":0},{"$f":"SUMPRODUCT(Комплектация!$F$3:$AD$19*(Комплектация!$F$1:$AD$1=ноябрь_компл!$G13)*(ноябрь_компл!O$33=Комплектация!$C$3:$C$19))","v":0},{"$f":"SUMPRODUCT(Комплектация!$F$3:$AD$19*(Комплектация!$F$1:$AD$1=ноябрь_компл!$G13)*(ноябрь_компл!P$33=Комплектация!$C$3:$C$19))","v":0},{"$f":"SUMPRODUCT(Комплектация!$F$3:$AD$19*(Комплектация!$F$1:$AD$1=ноябрь_компл!$G13)*(ноябрь_компл!Q$33=Комплектация!$C$3:$C$19))","v":0},{"$f":"SUMPRODUCT(Комплектация!$F$3:$AD$19*(Комплектация!$F$1:$AD$1=ноябрь_компл!$G13)*(ноябрь_компл!R$33=Комплектация!$C$3:$C$19))","v":0},{"$f":"SUMPRODUCT(Комплектация!$F$3:$AD$19*(Комплектация!$F$1:$AD$1=ноябрь_компл!$G13)*(ноябрь_компл!S$33=Комплектация!$C$3:$C$19))","v":0},{"$f":"SUMPRODUCT(Комплектация!$F$3:$AD$19*(Комплектация!$F$1:$AD$1=ноябрь_компл!$G13)*(ноябрь_компл!T$33=Комплектация!$C$3:$C$19))","v":0}]
[null,null,null,null,null,null,"2016-11-11",{"$f":"SUMPRODUCT(Комплектация!$F$3:$AD$19*(Комплектация!$F$1:$AD$1=ноябрь_компл!$G14)*(ноябрь_компл!H$33=Комплектация!$C$3:$C$19))","v":0},{"$f":"SUMPRODUCT(Комплектация!$F$3:$AD$19*(Комплектация!$F$1:$AD$1=ноябрь_компл!$G14)*(ноябрь_компл!I$33=Комплектация!$C$3:$C$19))","v":0},{"$f":"SUMPRODUCT(Комплектация!$F$3:$AD$19*(Комплектация!$F$1:$AD$1=ноябрь_компл!$G14)*(ноябрь_компл!J$33=Комплектация!$C$3:$C$19))","v":0},{"$f":"SUMPRODUCT(Комплектация!$F$3:$AD$19*(Комплектация!$F$1:$AD$1=ноябрь_компл!$G14)*(ноябрь_компл!K$33=Комплектация!$C$3:$C$19))","v":0},{"$f":"SUMPRODUCT(Комплектация!$F$3:$AD$19*(Комплектация!$F$1:$AD$1=ноябрь_компл!$G14)*(ноябрь_компл!L$33=Комплектация!$C$3:$C$19))","v":0},{"$f":"SUMPRODUCT(Комплектация!$F$3:$AD$19*(Комплектация!$F$1:$AD$1=ноябрь_компл!$G14)*(ноябрь_компл!M$33=Комплектация!$C$3:$C$19))","v":0},{"$f":"SUMPRODUCT(Комплектация!$F$3:$AD$19*(Комплектация!$F$1:$AD$1=ноябрь_компл!$G14)*(ноябрь_компл!N$33=Комплектация!$C$3:$C$19))","v":0},{"$f":"SUMPRODUCT(Комплектация!$F$3:$AD$19*(Комплектация!$F$1:$AD$1=ноябрь_компл!$G14)*(ноябрь_компл!O$33=Комплектация!$C$3:$C$19))","v":0},{"$f":"SUMPRODUCT(Комплектация!$F$3:$AD$19*(Комплектация!$F$1:$AD$1=ноябрь_компл!$G14)*(ноябрь_компл!P$33=Комплектация!$C$3:$C$19))","v":0},{"$f":"SUMPRODUCT(Комплектация!$F$3:$AD$19*(Комплектация!$F$1:$AD$1=ноябрь_компл!$G14)*(ноябрь_компл!Q$33=Комплектация!$C$3:$C$19))","v":0},{"$f":"SUMPRODUCT(Комплектация!$F$3:$AD$19*(Комплектация!$F$1:$AD$1=ноябрь_компл!$G14)*(ноябрь_компл!R$33=Комплектация!$C$3:$C$19))","v":0},{"$f":"SUMPRODUCT(Комплектация!$F$3:$AD$19*(Комплектация!$F$1:$AD$1=ноябрь_компл!$G14)*(ноябрь_компл!S$33=Комплектация!$C$3:$C$19))","v":0},{"$f":"SUMPRODUCT(Комплектация!$F$3:$AD$19*(Комплектация!$F$1:$AD$1=ноябрь_компл!$G14)*(ноябрь_компл!T$33=Комплектация!$C$3:$C$19))","v":0}]
[null,null,null,null,null,null,"2016-11-14",{"$f":"SUMPRODUCT(Комплектация!$F$3:$AD$19*(Комплектация!$F$1:$AD$1=ноябрь_компл!$G15)*(ноябрь_компл!H$33=Комплектация!$C$3:$C$19))","v":0},{"$f":"SUMPRODUCT(Комплектация!$F$3:$AD$19*(Комплектация!$F$1:$AD$1=ноябрь_компл!$G15)*(ноябрь_компл!I$33=Комплектация!$C$3:$C$19))","v":0},{"$f":"SUMPRODUCT(Комплектация!$F$3:$AD$19*(Комплектация!$F$1:$AD$1=ноябрь_компл!$G15)*(ноябрь_компл!J$33=Комплектация!$C$3:$C$19))","v":0},{"$f":"SUMPRODUCT(Комплектация!$F$3:$AD$19*(Комплектация!$F$1:$AD$1=ноябрь_компл!$G15)*(ноябрь_компл!K$33=Комплектация!$C$3:$C$19))","v":0},{"$f":"SUMPRODUCT(Комплектация!$F$3:$AD$19*(Комплектация!$F$1:$AD$1=ноябрь_компл!$G15)*(ноябрь_компл!L$33=Комплектация!$C$3:$C$19))","v":0},{"$f":"SUMPRODUCT(Комплектация!$F$3:$AD$19*(Комплектация!$F$1:$AD$1=ноябрь_компл!$G15)*(ноябрь_компл!M$33=Комплектация!$C$3:$C$19))","v":0},{"$f":"SUMPRODUCT(Комплектация!$F$3:$AD$19*(Комплектация!$F$1:$AD$1=ноябрь_компл!$G15)*(ноябрь_компл!N$33=Комплектация!$C$3:$C$19))","v":0},{"$f":"SUMPRODUCT(Комплектация!$F$3:$AD$19*(Комплектация!$F$1:$AD$1=ноябрь_компл!$G15)*(ноябрь_компл!O$33=Комплектация!$C$3:$C$19))","v":0},{"$f":"SUMPRODUCT(Комплектация!$F$3:$AD$19*(Комплектация!$F$1:$AD$1=ноябрь_компл!$G15)*(ноябрь_компл!P$33=Комплектация!$C$3:$C$19))","v":0},{"$f":"SUMPRODUCT(Комплектация!$F$3:$AD$19*(Комплектация!$F$1:$AD$1=ноябрь_компл!$G15)*(ноябрь_компл!Q$33=Комплектация!$C$3:$C$19))","v":0},{"$f":"SUMPRODUCT(Комплектация!$F$3:$AD$19*(Комплектация!$F$1:$AD$1=ноябрь_компл!$G15)*(ноябрь_компл!R$33=Комплектация!$C$3:$C$19))","v":0},{"$f":"SUMPRODUCT(Комплектация!$F$3:$AD$19*(Комплектация!$F$1:$AD$1=ноябрь_компл!$G15)*(ноябрь_компл!S$33=Комплектация!$C$3:$C$19))","v":0},{"$f":"SUMPRODUCT(Комплектация!$F$3:$AD$19*(Комплектация!$F$1:$AD$1=ноябрь_компл!$G15)*(ноябрь_компл!T$33=Комплектация!$C$3:$C$19))","v":0}]
[null,null,null,null,null,null,"2016-11-15",{"$f":"SUMPRODUCT(Комплектация!$F$3:$AD$19*(Комплектация!$F$1:$AD$1=ноябрь_компл!$G16)*(ноябрь_компл!H$33=Комплектация!$C$3:$C$19))","v":0},{"$f":"SUMPRODUCT(Комплектация!$F$3:$AD$19*(Комплектация!$F$1:$AD$1=ноябрь_компл!$G16)*(ноябрь_компл!I$33=Комплектация!$C$3:$C$19))","v":0},{"$f":"SUMPRODUCT(Комплектация!$F$3:$AD$19*(Комплектация!$F$1:$AD$1=ноябрь_компл!$G16)*(ноябрь_компл!J$33=Комплектация!$C$3:$C$19))","v":0},{"$f":"SUMPRODUCT(Комплектация!$F$3:$AD$19*(Комплектация!$F$1:$AD$1=ноябрь_компл!$G16)*(ноябрь_компл!K$33=Комплектация!$C$3:$C$19))","v":0},{"$f":"SUMPRODUCT(Комплектация!$F$3:$AD$19*(Комплектация!$F$1:$AD$1=ноябрь_компл!$G16)*(ноябрь_компл!L$33=Комплектация!$C$3:$C$19))","v":0},{"$f":"SUMPRODUCT(Комплектация!$F$3:$AD$19*(Комплектация!$F$1:$AD$1=ноябрь_компл!$G16)*(ноябрь_компл!M$33=Комплектация!$C$3:$C$19))","v":0},{"$f":"SUMPRODUCT(Комплектация!$F$3:$AD$19*(Комплектация!$F$1:$AD$1=ноябрь_компл!$G16)*(ноябрь_компл!N$33=Комплектация!$C$3:$C$19))","v":0},{"$f":"SUMPRODUCT(Комплектация!$F$3:$AD$19*(Комплектация!$F$1:$AD$1=ноябрь_компл!$G16)*(ноябрь_компл!O$33=Комплектация!$C$3:$C$19))","v":0},{"$f":"SUMPRODUCT(Комплектация!$F$3:$AD$19*(Комплектация!$F$1:$AD$1=ноябрь_компл!$G16)*(ноябрь_компл!P$33=Комплектация!$C$3:$C$19))","v":0},{"$f":"SUMPRODUCT(Комплектация!$F$3:$AD$19*(Комплектация!$F$1:$AD$1=ноябрь_компл!$G16)*(ноябрь_компл!Q$33=Комплектация!$C$3:$C$19))","v":0},{"$f":"SUMPRODUCT(Комплектация!$F$3:$AD$19*(Комплектация!$F$1:$AD$1=ноябрь_компл!$G16)*(ноябрь_компл!R$33=Комплектация!$C$3:$C$19))","v":0},{"$f":"SUMPRODUCT(Комплектация!$F$3:$AD$19*(Комплектация!$F$1:$AD$1=ноябрь_компл!$G16)*(ноябрь_компл!S$33=Комплектация!$C$3:$C$19))","v":0},{"$f":"SUMPRODUCT(Комплектация!$F$3:$AD$19*(Комплектация!$F$1:$AD$1=ноябрь_компл!$G16)*(ноябрь_компл!T$33=Комплектация!$C$3:$C$19))","v":0}]
[null,null,null,null,null,null,"2016-11-16",{"$f":"SUMPRODUCT(Комплектация!$F$3:$AD$19*(Комплектация!$F$1:$AD$1=ноябрь_компл!$G17)*(ноябрь_компл!H$33=Комплектация!$C$3:$C$19))","v":0},{"$f":"SUMPRODUCT(Комплектация!$F$3:$AD$19*(Комплектация!$F$1:$AD$1=ноябрь_компл!$G17)*(ноябрь_компл!I$33=Комплектация!$C$3:$C$19))","v":0},{"$f":"SUMPRODUCT(Комплектация!$F$3:$AD$19*(Комплектация!$F$1:$AD$1=ноябрь_компл!$G17)*(ноябрь_компл!J$33=Комплектация!$C$3:$C$19))","v":0},{"$f":"SUMPRODUCT(Комплектация!$F$3:$AD$19*(Комплектация!$F$1:$AD$1=ноябрь_компл!$G17)*(ноябрь_компл!K$33=Комплектация!$C$3:$C$19))","v":0},{"$f":"SUMPRODUCT(Комплектация!$F$3:$AD$19*(Комплектация!$F$1:$AD$1=ноябрь_компл!$G17)*(ноябрь_компл!L$33=Комплектация!$C$3:$C$19))","v":0},{"$f":"SUMPRODUCT(Комплектация!$F$3:$AD$19*(Комплектация!$F$1:$AD$1=ноябрь_компл!$G17)*(ноябрь_компл!M$33=Комплектация!$C$3:$C$19))","v":0},{"$f":"SUMPRODUCT(Комплектация!$F$3:$AD$19*(Комплектация!$F$1:$AD$1=ноябрь_компл!$G17)*(ноябрь_компл!N$33=Комплектация!$C$3:$C$19))","v":0},{"$f":"SUMPRODUCT(Комплектация!$F$3:$AD$19*(Комплектация!$F$1:$AD$1=ноябрь_компл!$G17)*(ноябрь_компл!O$33=Комплектация!$C$3:$C$19))","v":0},{"$f":"SUMPRODUCT(Комплектация!$F$3:$AD$19*(Комплектация!$F$1:$AD$1=ноябрь_компл!$G17)*(ноябрь_компл!P$33=Комплектация!$C$3:$C$19))","v":0},{"$f":"SUMPRODUCT(Комплектация!$F$3:$AD$19*(Комплектация!$F$1:$AD$1=ноябрь_компл!$G17)*(ноябрь_компл!Q$33=Комплектация!$C$3:$C$19))","v":0},{"$f":"SUMPRODUCT(Комплектация!$F$3:$AD$19*(Комплектация!$F$1:$AD$1=ноябрь_компл!$G17)*(ноябрь_компл!R$33=Комплектация!$C$3:$C$19))","v":0},{"$f":"SUMPRODUCT(Комплектация!$F$3:$AD$19*(Комплектация!$F$1:$AD$1=ноябрь_компл!$G17)*(ноябрь_компл!S$33=Комплектация!$C$3:$C$19))","v":0},{"$f":"SUMPRODUCT(Комплектация!$F$3:$AD$19*(Комплектация!$F$1:$AD$1=ноябрь_компл!$G17)*(ноябрь_компл!T$33=Комплектация!$C$3:$C$19))","v":0}]
[null,null,null,null,null,null,"2016-11-17",{"$f":"SUMPRODUCT(Комплектация!$F$3:$AD$19*(Комплектация!$F$1:$AD$1=ноябрь_компл!$G18)*(ноябрь_компл!H$33=Комплектация!$C$3:$C$19))","v":0},{"$f":"SUMPRODUCT(Комплектация!$F$3:$AD$19*(Комплектация!$F$1:$AD$1=ноябрь_компл!$G18)*(ноябрь_компл!I$33=Комплектация!$C$3:$C$19))","v":0},{"$f":"SUMPRODUCT(Комплектация!$F$3:$AD$19*(Комплектация!$F$1:$AD$1=ноябрь_компл!$G18)*(ноябрь_компл!J$33=Комплектация!$C$3:$C$19))","v":0},{"$f":"SUMPRODUCT(Комплектация!$F$3:$AD$19*(Комплектация!$F$1:$AD$1=ноябрь_компл!$G18)*(ноябрь_компл!K$33=Комплектация!$C$3:$C$19))","v":0},{"$f":"SUMPRODUCT(Комплектация!$F$3:$AD$19*(Комплектация!$F$1:$AD$1=ноябрь_компл!$G18)*(ноябрь_компл!L$33=Комплектация!$C$3:$C$19))","v":0},{"$f":"SUMPRODUCT(Комплектация!$F$3:$AD$19*(Комплектация!$F$1:$AD$1=ноябрь_компл!$G18)*(ноябрь_компл!M$33=Комплектация!$C$3:$C$19))","v":0},{"$f":"SUMPRODUCT(Комплектация!$F$3:$AD$19*(Комплектация!$F$1:$AD$1=ноябрь_компл!$G18)*(ноябрь_компл!N$33=Комплектация!$C$3:$C$19))","v":0},{"$f":"SUMPRODUCT(Комплектация!$F$3:$AD$19*(Комплектация!$F$1:$AD$1=ноябрь_компл!$G18)*(ноябрь_компл!O$33=Комплектация!$C$3:$C$19))","v":0},{"$f":"SUMPRODUCT(Комплектация!$F$3:$AD$19*(Комплектация!$F$1:$AD$1=ноябрь_компл!$G18)*(ноябрь_компл!P$33=Комплектация!$C$3:$C$19))","v":0},{"$f":"SUMPRODUCT(Комплектация!$F$3:$AD$19*(Комплектация!$F$1:$AD$1=ноябрь_компл!$G18)*(ноябрь_компл!Q$33=Комплектация!$C$3:$C$19))","v":0},{"$f":"SUMPRODUCT(Комплектация!$F$3:$AD$19*(Комплектация!$F$1:$AD$1=ноябрь_компл!$G18)*(ноябрь_компл!R$33=Комплектация!$C$3:$C$19))","v":0},{"$f":"SUMPRODUCT(Комплектация!$F$3:$AD$19*(Комплектация!$F$1:$AD$1=ноябрь_компл!$G18)*(ноябрь_компл!S$33=Комплектация!$C$3:$C$19))","v":0},{"$f":"SUMPRODUCT(Комплектация!$F$3:$AD$19*(Комплектация!$F$1:$AD$1=ноябрь_компл!$G18)*(ноябрь_компл!T$33=Комплектация!$C$3:$C$19))","v":0}]
[null,null,null,null,null,null,"2016-11-18",{"$f":"SUMPRODUCT(Комплектация!$F$3:$AD$19*(Комплектация!$F$1:$AD$1=ноябрь_компл!$G19)*(ноябрь_компл!H$33=Комплектация!$C$3:$C$19))","v":0},{"$f":"SUMPRODUCT(Комплектация!$F$3:$AD$19*(Комплектация!$F$1:$AD$1=ноябрь_компл!$G19)*(ноябрь_компл!I$33=Комплектация!$C$3:$C$19))","v":0},{"$f":"SUMPRODUCT(Комплектация!$F$3:$AD$19*(Комплектация!$F$1:$AD$1=ноябрь_компл!$G19)*(ноябрь_компл!J$33=Комплектация!$C$3:$C$19))","v":0},{"$f":"SUMPRODUCT(Комплектация!$F$3:$AD$19*(Комплектация!$F$1:$AD$1=ноябрь_компл!$G19)*(ноябрь_компл!K$33=Комплектация!$C$3:$C$19))","v":0},{"$f":"SUMPRODUCT(Комплектация!$F$3:$AD$19*(Комплектация!$F$1:$AD$1=ноябрь_компл!$G19)*(ноябрь_компл!L$33=Комплектация!$C$3:$C$19))","v":0},{"$f":"SUMPRODUCT(Комплектация!$F$3:$AD$19*(Комплектация!$F$1:$AD$1=ноябрь_компл!$G19)*(ноябрь_компл!M$33=Комплектация!$C$3:$C$19))","v":0},{"$f":"SUMPRODUCT(Комплектация!$F$3:$AD$19*(Комплектация!$F$1:$AD$1=ноябрь_компл!$G19)*(ноябрь_компл!N$33=Комплектация!$C$3:$C$19))","v":0},{"$f":"SUMPRODUCT(Комплектация!$F$3:$AD$19*(Комплектация!$F$1:$AD$1=ноябрь_компл!$G19)*(ноябрь_компл!O$33=Комплектация!$C$3:$C$19))","v":0},{"$f":"SUMPRODUCT(Комплектация!$F$3:$AD$19*(Комплектация!$F$1:$AD$1=ноябрь_компл!$G19)*(ноябрь_компл!P$33=Комплектация!$C$3:$C$19))","v":0},{"$f":"SUMPRODUCT(Комплектация!$F$3:$AD$19*(Комплектация!$F$1:$AD$1=ноябрь_компл!$G19)*(ноябрь_компл!Q$33=Комплектация!$C$3:$C$19))","v":0},{"$f":"SUMPRODUCT(Комплектация!$F$3:$AD$19*(Комплектация!$F$1:$AD$1=ноябрь_компл!$G19)*(ноябрь_компл!R$33=Комплектация!$C$3:$C$19))","v":0},{"$f":"SUMPRODUCT(Комплектация!$F$3:$AD$19*(Комплектация!$F$1:$AD$1=ноябрь_компл!$G19)*(ноябрь_компл!S$33=Комплектация!$C$3:$C$19))","v":0},{"$f":"SUMPRODUCT(Комплектация!$F$3:$AD$19*(Комплектация!$F$1:$AD$1=ноябрь_компл!$G19)*(ноябрь_компл!T$33=Комплектация!$C$3:$C$19))","v":0}]
[null,null,null,null,null,null,"2016-11-21",{"$f":"SUMPRODUCT(Комплектация!$F$3:$AD$19*(Комплектация!$F$1:$AD$1=ноябрь_компл!$G20)*(ноябрь_компл!H$33=Комплектация!$C$3:$C$19))","v":0},{"$f":"SUMPRODUCT(Комплектация!$F$3:$AD$19*(Комплектация!$F$1:$AD$1=ноябрь_компл!$G20)*(ноябрь_компл!I$33=Комплектация!$C$3:$C$19))","v":0},{"$f":"SUMPRODUCT(Комплектация!$F$3:$AD$19*(Комплектация!$F$1:$AD$1=ноябрь_компл!$G20)*(ноябрь_компл!J$33=Комплектация!$C$3:$C$19))","v":0},{"$f":"SUMPRODUCT(Комплектация!$F$3:$AD$19*(Комплектация!$F$1:$AD$1=ноябрь_компл!$G20)*(ноябрь_компл!K$33=Комплектация!$C$3:$C$19))","v":0},{"$f":"SUMPRODUCT(Комплектация!$F$3:$AD$19*(Комплектация!$F$1:$AD$1=ноябрь_компл!$G20)*(ноябрь_компл!L$33=Комплектация!$C$3:$C$19))","v":0},{"$f":"SUMPRODUCT(Комплектация!$F$3:$AD$19*(Комплектация!$F$1:$AD$1=ноябрь_компл!$G20)*(ноябрь_компл!M$33=Комплектация!$C$3:$C$19))","v":0},{"$f":"SUMPRODUCT(Комплектация!$F$3:$AD$19*(Комплектация!$F$1:$AD$1=ноябрь_компл!$G20)*(ноябрь_компл!N$33=Комплектация!$C$3:$C$19))","v":0},{"$f":"SUMPRODUCT(Комплектация!$F$3:$AD$19*(Комплектация!$F$1:$AD$1=ноябрь_компл!$G20)*(ноябрь_компл!O$33=Комплектация!$C$3:$C$19))","v":0},{"$f":"SUMPRODUCT(Комплектация!$F$3:$AD$19*(Комплектация!$F$1:$AD$1=ноябрь_компл!$G20)*(ноябрь_компл!P$33=Комплектация!$C$3:$C$19))","v":0},{"$f":"SUMPRODUCT(Комплектация!$F$3:$AD$19*(Комплектация!$F$1:$AD$1=ноябрь_компл!$G20)*(ноябрь_компл!Q$33=Комплектация!$C$3:$C$19))","v":0},{"$f":"SUMPRODUCT(Комплектация!$F$3:$AD$19*(Комплектация!$F$1:$AD$1=ноябрь_компл!$G20)*(ноябрь_компл!R$33=Комплектация!$C$3:$C$19))","v":0},{"$f":"SUMPRODUCT(Комплектация!$F$3:$AD$19*(Комплектация!$F$1:$AD$1=ноябрь_компл!$G20)*(ноябрь_компл!S$33=Комплектация!$C$3:$C$19))","v":0},{"$f":"SUMPRODUCT(Комплектация!$F$3:$AD$19*(Комплектация!$F$1:$AD$1=ноябрь_компл!$G20)*(ноябрь_компл!T$33=Комплектация!$C$3:$C$19))","v":0}]
[null,null,null,null,null,null,"2016-11-22",{"$f":"SUMPRODUCT(Комплектация!$F$3:$AD$19*(Комплектация!$F$1:$AD$1=ноябрь_компл!$G21)*(ноябрь_компл!H$33=Комплектация!$C$3:$C$19))","v":0},{"$f":"SUMPRODUCT(Комплектация!$F$3:$AD$19*(Комплектация!$F$1:$AD$1=ноябрь_компл!$G21)*(ноябрь_компл!I$33=Комплектация!$C$3:$C$19))","v":0},{"$f":"SUMPRODUCT(Комплектация!$F$3:$AD$19*(Комплектация!$F$1:$AD$1=ноябрь_компл!$G21)*(ноябрь_компл!J$33=Комплектация!$C$3:$C$19))","v":0},{"$f":"SUMPRODUCT(Комплектация!$F$3:$AD$19*(Комплектация!$F$1:$AD$1=ноябрь_компл!$G21)*(ноябрь_компл!K$33=Комплектация!$C$3:$C$19))","v":0},{"$f":"SUMPRODUCT(Комплектация!$F$3:$AD$19*(Комплектация!$F$1:$AD$1=ноябрь_компл!$G21)*(ноябрь_компл!L$33=Комплектация!$C$3:$C$19))","v":0},{"$f":"SUMPRODUCT(Комплектация!$F$3:$AD$19*(Комплектация!$F$1:$AD$1=ноябрь_компл!$G21)*(ноябрь_компл!M$33=Комплектация!$C$3:$C$19))","v":0},{"$f":"SUMPRODUCT(Комплектация!$F$3:$AD$19*(Комплектация!$F$1:$AD$1=ноябрь_компл!$G21)*(ноябрь_компл!N$33=Комплектация!$C$3:$C$19))","v":0},{"$f":"SUMPRODUCT(Комплектация!$F$3:$AD$19*(Комплектация!$F$1:$AD$1=ноябрь_компл!$G21)*(ноябрь_компл!O$33=Комплектация!$C$3:$C$19))","v":0},{"$f":"SUMPRODUCT(Комплектация!$F$3:$AD$19*(Комплектация!$F$1:$AD$1=ноябрь_компл!$G21)*(ноябрь_компл!P$33=Комплектация!$C$3:$C$19))","v":0},{"$f":"SUMPRODUCT(Комплектация!$F$3:$AD$19*(Комплектация!$F$1:$AD$1=ноябрь_компл!$G21)*(ноябрь_компл!Q$33=Комплектация!$C$3:$C$19))","v":0},{"$f":"SUMPRODUCT(Комплектация!$F$3:$AD$19*(Комплектация!$F$1:$AD$1=ноябрь_компл!$G21)*(ноябрь_компл!R$33=Комплектация!$C$3:$C$19))","v":0},{"$f":"SUMPRODUCT(Комплектация!$F$3:$AD$19*(Комплектация!$F$1:$AD$1=ноябрь_компл!$G21)*(ноябрь_компл!S$33=Комплектация!$C$3:$C$19))","v":0},{"$f":"SUMPRODUCT(Комплектация!$F$3:$AD$19*(Комплектация!$F$1:$AD$1=ноябрь_компл!$G21)*(ноябрь_компл!T$33=Комплектация!$C$3:$C$19))","v":0}]
[null,null,null,null,null,null,"2016-11-23",{"$f":"SUMPRODUCT(Комплектация!$F$3:$AD$19*(Комплектация!$F$1:$AD$1=ноябрь_компл!$G22)*(ноябрь_компл!H$33=Комплектация!$C$3:$C$19))","v":0},{"$f":"SUMPRODUCT(Комплектация!$F$3:$AD$19*(Комплектация!$F$1:$AD$1=ноябрь_компл!$G22)*(ноябрь_компл!I$33=Комплектация!$C$3:$C$19))","v":0},{"$f":"SUMPRODUCT(Комплектация!$F$3:$AD$19*(Комплектация!$F$1:$AD$1=ноябрь_компл!$G22)*(ноябрь_компл!J$33=Комплектация!$C$3:$C$19))","v":0},{"$f":"SUMPRODUCT(Комплектация!$F$3:$AD$19*(Комплектация!$F$1:$AD$1=ноябрь_компл!$G22)*(ноябрь_компл!K$33=Комплектация!$C$3:$C$19))","v":0},{"$f":"SUMPRODUCT(Комплектация!$F$3:$AD$19*(Комплектация!$F$1:$AD$1=ноябрь_компл!$G22)*(ноябрь_компл!L$33=Комплектация!$C$3:$C$19))","v":0},{"$f":"SUMPRODUCT(Комплектация!$F$3:$AD$19*(Комплектация!$F$1:$AD$1=ноябрь_компл!$G22)*(ноябрь_компл!M$33=Комплектация!$C$3:$C$19))","v":0},{"$f":"SUMPRODUCT(Комплектация!$F$3:$AD$19*(Комплектация!$F$1:$AD$1=ноябрь_компл!$G22)*(ноябрь_компл!N$33=Комплектация!$C$3:$C$19))","v":0},{"$f":"SUMPRODUCT(Комплектация!$F$3:$AD$19*(Комплектация!$F$1:$AD$1=ноябрь_компл!$G22)*(ноябрь_компл!O$33=Комплектация!$C$3:$C$19))","v":0},{"$f":"SUMPRODUCT(Комплектация!$F$3:$AD$19*(Комплектация!$F$1:$AD$1=ноябрь_компл!$G22)*(ноябрь_компл!P$33=Комплектация!$C$3:$C$19))","v":0},{"$f":"SUMPRODUCT(Комплектация!$F$3:$AD$19*(Комплектация!$F$1:$AD$1=ноябрь_компл!$G22)*(ноябрь_компл!Q$33=Комплектация!$C$3:$C$19))","v":0},{"$f":"SUMPRODUCT(Комплектация!$F$3:$AD$19*(Комплектация!$F$1:$AD$1=ноябрь_компл!$G22)*(ноябрь_компл!R$33=Комплектация!$C$3:$C$19))","v":0},{"$f":"SUMPRODUCT(Комплектация!$F$3:$AD$19*(Комплектация!$F$1:$AD$1=ноябрь_компл!$G22)*(ноябрь_компл!S$33=Комплектация!$C$3:$C$19))","v":0},{"$f":"SUMPRODUCT(Комплектация!$F$3:$AD$19*(Комплектация!$F$1:$AD$1=ноябрь_компл!$G22)*(ноябрь_компл!T$33=Комплектация!$C$3:$C$19))","v":0}]
[null,null,null,null,null,null,"2016-11-24",{"$f":"SUMPRODUCT(Комплектация!$F$3:$AD$19*(Комплектация!$F$1:$AD$1=ноябрь_компл!$G23)*(ноябрь_компл!H$33=Комплектация!$C$3:$C$19))","v":0},{"$f":"SUMPRODUCT(Комплектация!$F$3:$AD$19*(Комплектация!$F$1:$AD$1=ноябрь_компл!$G23)*(ноябрь_компл!I$33=Комплектация!$C$3:$C$19))","v":0},{"$f":"SUMPRODUCT(Комплектация!$F$3:$AD$19*(Комплектация!$F$1:$AD$1=ноябрь_компл!$G23)*(ноябрь_компл!J$33=Комплектация!$C$3:$C$19))","v":0},{"$f":"SUMPRODUCT(Комплектация!$F$3:$AD$19*(Комплектация!$F$1:$AD$1=ноябрь_компл!$G23)*(ноябрь_компл!K$33=Комплектация!$C$3:$C$19))","v":0},{"$f":"SUMPRODUCT(Комплектация!$F$3:$AD$19*(Комплектация!$F$1:$AD$1=ноябрь_компл!$G23)*(ноябрь_компл!L$33=Комплектация!$C$3:$C$19))","v":0},{"$f":"SUMPRODUCT(Комплектация!$F$3:$AD$19*(Комплектация!$F$1:$AD$1=ноябрь_компл!$G23)*(ноябрь_компл!M$33=Комплектация!$C$3:$C$19))","v":0},{"$f":"SUMPRODUCT(Комплектация!$F$3:$AD$19*(Комплектация!$F$1:$AD$1=ноябрь_компл!$G23)*(ноябрь_компл!N$33=Комплектация!$C$3:$C$19))","v":0},{"$f":"SUMPRODUCT(Комплектация!$F$3:$AD$19*(Комплектация!$F$1:$AD$1=ноябрь_компл!$G23)*(ноябрь_компл!O$33=Комплектация!$C$3:$C$19))","v":0},{"$f":"SUMPRODUCT(Комплектация!$F$3:$AD$19*(Комплектация!$F$1:$AD$1=ноябрь_компл!$G23)*(ноябрь_компл!P$33=Комплектация!$C$3:$C$19))","v":0},{"$f":"SUMPRODUCT(Комплектация!$F$3:$AD$19*(Комплектация!$F$1:$AD$1=ноябрь_компл!$G23)*(ноябрь_компл!Q$33=Комплектация!$C$3:$C$19))","v":0},{"$f":"SUMPRODUCT(Комплектация!$F$3:$AD$19*(Комплектация!$F$1:$AD$1=ноябрь_компл!$G23)*(ноябрь_компл!R$33=Комплектация!$C$3:$C$19))","v":0},{"$f":"SUMPRODUCT(Комплектация!$F$3:$AD$19*(Комплектация!$F$1:$AD$1=ноябрь_компл!$G23)*(ноябрь_компл!S$33=Комплектация!$C$3:$C$19))","v":0},{"$f":"SUMPRODUCT(Комплектация!$F$3:$AD$19*(Комплектация!$F$1:$AD$1=ноябрь_компл!$G23)*(ноябрь_компл!T$33=Комплектация!$C$3:$C$19))","v":0}]
[null,null,null,null,null,null,"2016-11-25",{"$f":"SUMPRODUCT(Комплектация!$F$3:$AD$19*(Комплектация!$F$1:$AD$1=ноябрь_компл!$G24)*(ноябрь_компл!H$33=Комплектация!$C$3:$C$19))","v":0},{"$f":"SUMPRODUCT(Комплектация!$F$3:$AD$19*(Комплектация!$F$1:$AD$1=ноябрь_компл!$G24)*(ноябрь_компл!I$33=Комплектация!$C$3:$C$19))","v":0},{"$f":"SUMPRODUCT(Комплектация!$F$3:$AD$19*(Комплектация!$F$1:$AD$1=ноябрь_компл!$G24)*(ноябрь_компл!J$33=Комплектация!$C$3:$C$19))","v":0},{"$f":"SUMPRODUCT(Комплектация!$F$3:$AD$19*(Комплектация!$F$1:$AD$1=ноябрь_компл!$G24)*(ноябрь_компл!K$33=Комплектация!$C$3:$C$19))","v":0},{"$f":"SUMPRODUCT(Комплектация!$F$3:$AD$19*(Комплектация!$F$1:$AD$1=ноябрь_компл!$G24)*(ноябрь_компл!L$33=Комплектация!$C$3:$C$19))","v":0},{"$f":"SUMPRODUCT(Комплектация!$F$3:$AD$19*(Комплектация!$F$1:$AD$1=ноябрь_компл!$G24)*(ноябрь_компл!M$33=Комплектация!$C$3:$C$19))","v":0},{"$f":"SUMPRODUCT(Комплектация!$F$3:$AD$19*(Комплектация!$F$1:$AD$1=ноябрь_компл!$G24)*(ноябрь_компл!N$33=Комплектация!$C$3:$C$19))","v":0},{"$f":"SUMPRODUCT(Комплектация!$F$3:$AD$19*(Комплектация!$F$1:$AD$1=ноябрь_компл!$G24)*(ноябрь_компл!O$33=Комплектация!$C$3:$C$19))","v":0},{"$f":"SUMPRODUCT(Комплектация!$F$3:$AD$19*(Комплектация!$F$1:$AD$1=ноябрь_компл!$G24)*(ноябрь_компл!P$33=Комплектация!$C$3:$C$19))","v":0},{"$f":"SUMPRODUCT(Комплектация!$F$3:$AD$19*(Комплектация!$F$1:$AD$1=ноябрь_компл!$G24)*(ноябрь_компл!Q$33=Комплектация!$C$3:$C$19))","v":0},{"$f":"SUMPRODUCT(Комплектация!$F$3:$AD$19*(Комплектация!$F$1:$AD$1=ноябрь_компл!$G24)*(ноябрь_компл!R$33=Комплектация!$C$3:$C$19))","v":0},{"$f":"SUMPRODUCT(Комплектация!$F$3:$AD$19*(Комплектация!$F$1:$AD$1=ноябрь_компл!$G24)*(ноябрь_компл!S$33=Комплектация!$C$3:$C$19))","v":0},{"$f":"SUMPRODUCT(Комплектация!$F$3:$AD$19*(Комплектация!$F$1:$AD$1=ноябрь_компл!$G24)*(ноябрь_компл!T$33=Комплектация!$C$3:$C$19))","v":0}]
[null,null,null,null,null,null,"2016-11-28",{"$f":"SUMPRODUCT(Комплектация!$F$3:$AD$19*(Комплектация!$F$1:$AD$1=ноябрь_компл!$G25)*(ноябрь_компл!H$33=Комплектация!$C$3:$C$19))","v":0},{"$f":"SUMPRODUCT(Комплектация!$F$3:$AD$19*(Комплектация!$F$1:$AD$1=ноябрь_компл!$G25)*(ноябрь_компл!I$33=Комплектация!$C$3:$C$19))","v":0},{"$f":"SUMPRODUCT(Комплектация!$F$3:$AD$19*(Комплектация!$F$1:$AD$1=ноябрь_компл!$G25)*(ноябрь_компл!J$33=Комплектация!$C$3:$C$19))","v":0},{"$f":"SUMPRODUCT(Комплектация!$F$3:$AD$19*(Комплектация!$F$1:$AD$1=ноябрь_компл!$G25)*(ноябрь_компл!K$33=Комплектация!$C$3:$C$19))","v":0},{"$f":"SUMPRODUCT(Комплектация!$F$3:$AD$19*(Комплектация!$F$1:$AD$1=ноябрь_компл!$G25)*(ноябрь_компл!L$33=Комплектация!$C$3:$C$19))","v":0},{"$f":"SUMPRODUCT(Комплектация!$F$3:$AD$19*(Комплектация!$F$1:$AD$1=ноябрь_компл!$G25)*(ноябрь_компл!M$33=Комплектация!$C$3:$C$19))","v":0},{"$f":"SUMPRODUCT(Комплектация!$F$3:$AD$19*(Комплектация!$F$1:$AD$1=ноябрь_компл!$G25)*(ноябрь_компл!N$33=Комплектация!$C$3:$C$19))","v":0},{"$f":"SUMPRODUCT(Комплектация!$F$3:$AD$19*(Комплектация!$F$1:$AD$1=ноябрь_компл!$G25)*(ноябрь_компл!O$33=Комплектация!$C$3:$C$19))","v":0},{"$f":"SUMPRODUCT(Комплектация!$F$3:$AD$19*(Комплектация!$F$1:$AD$1=ноябрь_компл!$G25)*(ноябрь_компл!P$33=Комплектация!$C$3:$C$19))","v":0},{"$f":"SUMPRODUCT(Комплектация!$F$3:$AD$19*(Комплектация!$F$1:$AD$1=ноябрь_компл!$G25)*(ноябрь_компл!Q$33=Комплектация!$C$3:$C$19))","v":0},{"$f":"SUMPRODUCT(Комплектация!$F$3:$AD$19*(Комплектация!$F$1:$AD$1=ноябрь_компл!$G25)*(ноябрь_компл!R$33=Комплектация!$C$3:$C$19))","v":0},{"$f":"SUMPRODUCT(Комплектация!$F$3:$AD$19*(Комплектация!$F$1:$AD$1=ноябрь_компл!$G25)*(ноябрь_компл!S$33=Комплектация!$C$3:$C$19))","v":0},{"$f":"SUMPRODUCT(Комплектация!$F$3:$AD$19*(Комплектация!$F$1:$AD$1=ноябрь_компл!$G25)*(ноябрь_компл!T$33=Комплектация!$C$3:$C$19))","v":0}]
[null,null,null,null,null,null,"2016-11-29",{"$f":"SUMPRODUCT(Комплектация!$F$3:$AD$19*(Комплектация!$F$1:$AD$1=ноябрь_компл!$G26)*(ноябрь_компл!H$33=Комплектация!$C$3:$C$19))","v":0},{"$f":"SUMPRODUCT(Комплектация!$F$3:$AD$19*(Комплектация!$F$1:$AD$1=ноябрь_компл!$G26)*(ноябрь_компл!I$33=Комплектация!$C$3:$C$19))","v":0},{"$f":"SUMPRODUCT(Комплектация!$F$3:$AD$19*(Комплектация!$F$1:$AD$1=ноябрь_компл!$G26)*(ноябрь_компл!J$33=Комплектация!$C$3:$C$19))","v":0},{"$f":"SUMPRODUCT(Комплектация!$F$3:$AD$19*(Комплектация!$F$1:$AD$1=ноябрь_компл!$G26)*(ноябрь_компл!K$33=Комплектация!$C$3:$C$19))","v":0},{"$f":"SUMPRODUCT(Комплектация!$F$3:$AD$19*(Комплектация!$F$1:$AD$1=ноябрь_компл!$G26)*(ноябрь_компл!L$33=Комплектация!$C$3:$C$19))","v":0},{"$f":"SUMPRODUCT(Комплектация!$F$3:$AD$19*(Комплектация!$F$1:$AD$1=ноябрь_компл!$G26)*(ноябрь_компл!M$33=Комплектация!$C$3:$C$19))","v":0},{"$f":"SUMPRODUCT(Комплектация!$F$3:$AD$19*(Комплектация!$F$1:$AD$1=ноябрь_компл!$G26)*(ноябрь_компл!N$33=Комплектация!$C$3:$C$19))","v":0},{"$f":"SUMPRODUCT(Комплектация!$F$3:$AD$19*(Комплектация!$F$1:$AD$1=ноябрь_компл!$G26)*(ноябрь_компл!O$33=Комплектация!$C$3:$C$19))","v":0},{"$f":"SUMPRODUCT(Комплектация!$F$3:$AD$19*(Комплектация!$F$1:$AD$1=ноябрь_компл!$G26)*(ноябрь_компл!P$33=Комплектация!$C$3:$C$19))","v":0},{"$f":"SUMPRODUCT(Комплектация!$F$3:$AD$19*(Комплектация!$F$1:$AD$1=ноябрь_компл!$G26)*(ноябрь_компл!Q$33=Комплектация!$C$3:$C$19))","v":0},{"$f":"SUMPRODUCT(Комплектация!$F$3:$AD$19*(Комплектация!$F$1:$AD$1=ноябрь_компл!$G26)*(ноябрь_компл!R$33=Комплектация!$C$3:$C$19))","v":0},{"$f":"SUMPRODUCT(Комплектация!$F$3:$AD$19*(Комплектация!$F$1:$AD$1=ноябрь_компл!$G26)*(ноябрь_компл!S$33=Комплектация!$C$3:$C$19))","v":0},{"$f":"SUMPRODUCT(Комплектация!$F$3:$AD$19*(Комплектация!$F$1:$AD$1=ноябрь_компл!$G26)*(ноябрь_компл!T$33=Комплектация!$C$3:$C$19))","v":0}]
[null,null,null,null,null,null,"2016-11-30",{"$f":"SUMPRODUCT(Комплектация!$F$3:$AD$19*(Комплектация!$F$1:$AD$1=ноябрь_компл!$G27)*(ноябрь_компл!H$33=Комплектация!$C$3:$C$19))","v":0},{"$f":"SUMPRODUCT(Комплектация!$F$3:$AD$19*(Комплектация!$F$1:$AD$1=ноябрь_компл!$G27)*(ноябрь_компл!I$33=Комплектация!$C$3:$C$19))","v":0},{"$f":"SUMPRODUCT(Комплектация!$F$3:$AD$19*(Комплектация!$F$1:$AD$1=ноябрь_компл!$G27)*(ноябрь_компл!J$33=Комплектация!$C$3:$C$19))","v":0},{"$f":"SUMPRODUCT(Комплектация!$F$3:$AD$19*(Комплектация!$F$1:$AD$1=ноябрь_компл!$G27)*(ноябрь_компл!K$33=Комплектация!$C$3:$C$19))","v":0},{"$f":"SUMPRODUCT(Комплектация!$F$3:$AD$19*(Комплектация!$F$1:$AD$1=ноябрь_компл!$G27)*(ноябрь_компл!L$33=Комплектация!$C$3:$C$19))","v":0},{"$f":"SUMPRODUCT(Комплектация!$F$3:$AD$19*(Комплектация!$F$1:$AD$1=ноябрь_компл!$G27)*(ноябрь_компл!M$33=Комплектация!$C$3:$C$19))","v":0},{"$f":"SUMPRODUCT(Комплектация!$F$3:$AD$19*(Комплектация!$F$1:$AD$1=ноябрь_компл!$G27)*(ноябрь_компл!N$33=Комплектация!$C$3:$C$19))","v":0},{"$f":"SUMPRODUCT(Комплектация!$F$3:$AD$19*(Комплектация!$F$1:$AD$1=ноябрь_компл!$G27)*(ноябрь_компл!O$33=Комплектация!$C$3:$C$19))","v":0},{"$f":"SUMPRODUCT(Комплектация!$F$3:$AD$19*(Комплектация!$F$1:$AD$1=ноябрь_компл!$G27)*(ноябрь_компл!P$33=Комплектация!$C$3:$C$19))","v":0},{"$f":"SUMPRODUCT(Комплектация!$F$3:$AD$19*(Комплектация!$F$1:$AD$1=ноябрь_компл!$G27)*(ноябрь_компл!Q$33=Комплектация!$C$3:$C$19))","v":0},{"$f":"SUMPRODUCT(Комплектация!$F$3:$AD$19*(Комплектация!$F$1:$AD$1=ноябрь_компл!$G27)*(ноябрь_компл!R$33=Комплектация!$C$3:$C$19))","v":0},{"$f":"SUMPRODUCT(Комплектация!$F$3:$AD$19*(Комплектация!$F$1:$AD$1=ноябрь_компл!$G27)*(ноябрь_компл!S$33=Комплектация!$C$3:$C$19))","v":0},{"$f":"SUMPRODUCT(Комплектация!$F$3:$AD$19*(Комплектация!$F$1:$AD$1=ноябрь_компл!$G27)*(ноябрь_компл!T$33=Комплектация!$C$3:$C$19))","v":0}]
[null,null,null,null,null,null,"2016-12-01",{"$f":"SUMPRODUCT(Комплектация!$F$3:$AD$19*(Комплектация!$F$1:$AD$1=ноябрь_компл!$G28)*(ноябрь_компл!H$33=Комплектация!$C$3:$C$19))","v":0},{"$f":"SUMPRODUCT(Комплектация!$F$3:$AD$19*(Комплектация!$F$1:$AD$1=ноябрь_компл!$G28)*(ноябрь_компл!I$33=Комплектация!$C$3:$C$19))","v":0},{"$f":"SUMPRODUCT(Комплектация!$F$3:$AD$19*(Комплектация!$F$1:$AD$1=ноябрь_компл!$G28)*(ноябрь_компл!J$33=Комплектация!$C$3:$C$19))","v":0},{"$f":"SUMPRODUCT(Комплектация!$F$3:$AD$19*(Комплектация!$F$1:$AD$1=ноябрь_компл!$G28)*(ноябрь_компл!K$33=Комплектация!$C$3:$C$19))","v":0},{"$f":"SUMPRODUCT(Комплектация!$F$3:$AD$19*(Комплектация!$F$1:$AD$1=ноябрь_компл!$G28)*(ноябрь_компл!L$33=Комплектация!$C$3:$C$19))","v":0},{"$f":"SUMPRODUCT(Комплектация!$F$3:$AD$19*(Комплектация!$F$1:$AD$1=ноябрь_компл!$G28)*(ноябрь_компл!M$33=Комплектация!$C$3:$C$19))","v":0},{"$f":"SUMPRODUCT(Комплектация!$F$3:$AD$19*(Комплектация!$F$1:$AD$1=ноябрь_компл!$G28)*(ноябрь_компл!N$33=Комплектация!$C$3:$C$19))","v":0},{"$f":"SUMPRODUCT(Комплектация!$F$3:$AD$19*(Комплектация!$F$1:$AD$1=ноябрь_компл!$G28)*(ноябрь_компл!O$33=Комплектация!$C$3:$C$19))","v":0},{"$f":"SUMPRODUCT(Комплектация!$F$3:$AD$19*(Комплектация!$F$1:$AD$1=ноябрь_компл!$G28)*(ноябрь_компл!P$33=Комплектация!$C$3:$C$19))","v":0},{"$f":"SUMPRODUCT(Комплектация!$F$3:$AD$19*(Комплектация!$F$1:$AD$1=ноябрь_компл!$G28)*(ноябрь_компл!Q$33=Комплектация!$C$3:$C$19))","v":0},{"$f":"SUMPRODUCT(Комплектация!$F$3:$AD$19*(Комплектация!$F$1:$AD$1=ноябрь_компл!$G28)*(ноябрь_компл!R$33=Комплектация!$C$3:$C$19))","v":0},{"$f":"SUMPRODUCT(Комплектация!$F$3:$AD$19*(Комплектация!$F$1:$AD$1=ноябрь_компл!$G28)*(ноябрь_компл!S$33=Комплектация!$C$3:$C$19))","v":0},{"$f":"SUMPRODUCT(Комплектация!$F$3:$AD$19*(Комплектация!$F$1:$AD$1=ноябрь_компл!$G28)*(ноябрь_компл!T$33=Комплектация!$C$3:$C$19))","v":0}]
[null,null,null,null,null,null,"2016-12-02",{"$f":"SUMPRODUCT(Комплектация!$F$3:$AD$19*(Комплектация!$F$1:$AD$1=ноябрь_компл!$G29)*(ноябрь_компл!H$33=Комплектация!$C$3:$C$19))","v":0},{"$f":"SUMPRODUCT(Комплектация!$F$3:$AD$19*(Комплектация!$F$1:$AD$1=ноябрь_компл!$G29)*(ноябрь_компл!I$33=Комплектация!$C$3:$C$19))","v":0},{"$f":"SUMPRODUCT(Комплектация!$F$3:$AD$19*(Комплектация!$F$1:$AD$1=ноябрь_компл!$G29)*(ноябрь_компл!J$33=Комплектация!$C$3:$C$19))","v":0},{"$f":"SUMPRODUCT(Комплектация!$F$3:$AD$19*(Комплектация!$F$1:$AD$1=ноябрь_компл!$G29)*(ноябрь_компл!K$33=Комплектация!$C$3:$C$19))","v":0},{"$f":"SUMPRODUCT(Комплектация!$F$3:$AD$19*(Комплектация!$F$1:$AD$1=ноябрь_компл!$G29)*(ноябрь_компл!L$33=Комплектация!$C$3:$C$19))","v":0},{"$f":"SUMPRODUCT(Комплектация!$F$3:$AD$19*(Комплектация!$F$1:$AD$1=ноябрь_компл!$G29)*(ноябрь_компл!M$33=Комплектация!$C$3:$C$19))","v":0},{"$f":"SUMPRODUCT(Комплектация!$F$3:$AD$19*(Комплектация!$F$1:$AD$1=ноябрь_компл!$G29)*(ноябрь_компл!N$33=Комплектация!$C$3:$C$19))","v":0},{"$f":"SUMPRODUCT(Комплектация!$F$3:$AD$19*(Комплектация!$F$1:$AD$1=ноябрь_компл!$G29)*(ноябрь_компл!O$33=Комплектация!$C$3:$C$19))","v":0},{"$f":"SUMPRODUCT(Комплектация!$F$3:$AD$19*(Комплектация!$F$1:$AD$1=ноябрь_компл!$G29)*(ноябрь_компл!P$33=Комплектация!$C$3:$C$19))","v":0},{"$f":"SUMPRODUCT(Комплектация!$F$3:$AD$19*(Комплектация!$F$1:$AD$1=ноябрь_компл!$G29)*(ноябрь_компл!Q$33=Комплектация!$C$3:$C$19))","v":0},{"$f":"SUMPRODUCT(Комплектация!$F$3:$AD$19*(Комплектация!$F$1:$AD$1=ноябрь_компл!$G29)*(ноябрь_компл!R$33=Комплектация!$C$3:$C$19))","v":0},{"$f":"SUMPRODUCT(Комплектация!$F$3:$AD$19*(Комплектация!$F$1:$AD$1=ноябрь_компл!$G29)*(ноябрь_компл!S$33=Комплектация!$C$3:$C$19))","v":0},{"$f":"SUMPRODUCT(Комплектация!$F$3:$AD$19*(Комплектация!$F$1:$AD$1=ноябрь_компл!$G29)*(ноябрь_компл!T$33=Комплектация!$C$3:$C$19))","v":0}]
[null,null,null,null,null,null,"2016-12-05",{"$f":"SUMPRODUCT(Комплектация!$F$3:$AD$19*(Комплектация!$F$1:$AD$1=ноябрь_компл!$G30)*(ноябрь_компл!H$33=Комплектация!$C$3:$C$19))","v":0},{"$f":"SUMPRODUCT(Комплектация!$F$3:$AD$19*(Комплектация!$F$1:$AD$1=ноябрь_компл!$G30)*(ноябрь_компл!I$33=Комплектация!$C$3:$C$19))","v":0},{"$f":"SUMPRODUCT(Комплектация!$F$3:$AD$19*(Комплектация!$F$1:$AD$1=ноябрь_компл!$G30)*(ноябрь_компл!J$33=Комплектация!$C$3:$C$19))","v":0},{"$f":"SUMPRODUCT(Комплектация!$F$3:$AD$19*(Комплектация!$F$1:$AD$1=ноябрь_компл!$G30)*(ноябрь_компл!K$33=Комплектация!$C$3:$C$19))","v":0},{"$f":"SUMPRODUCT(Комплектация!$F$3:$AD$19*(Комплектация!$F$1:$AD$1=ноябрь_компл!$G30)*(ноябрь_компл!L$33=Комплектация!$C$3:$C$19))","v":0},{"$f":"SUMPRODUCT(Комплектация!$F$3:$AD$19*(Комплектация!$F$1:$AD$1=ноябрь_компл!$G30)*(ноябрь_компл!M$33=Комплектация!$C$3:$C$19))","v":0},{"$f":"SUMPRODUCT(Комплектация!$F$3:$AD$19*(Комплектация!$F$1:$AD$1=ноябрь_компл!$G30)*(ноябрь_компл!N$33=Комплектация!$C$3:$C$19))","v":0},{"$f":"SUMPRODUCT(Комплектация!$F$3:$AD$19*(Комплектация!$F$1:$AD$1=ноябрь_компл!$G30)*(ноябрь_компл!O$33=Комплектация!$C$3:$C$19))","v":0},{"$f":"SUMPRODUCT(Комплектация!$F$3:$AD$19*(Комплектация!$F$1:$AD$1=ноябрь_компл!$G30)*(ноябрь_компл!P$33=Комплектация!$C$3:$C$19))","v":0},{"$f":"SUMPRODUCT(Комплектация!$F$3:$AD$19*(Комплектация!$F$1:$AD$1=ноябрь_компл!$G30)*(ноябрь_компл!Q$33=Комплектация!$C$3:$C$19))","v":0},{"$f":"SUMPRODUCT(Комплектация!$F$3:$AD$19*(Комплектация!$F$1:$AD$1=ноябрь_компл!$G30)*(ноябрь_компл!R$33=Комплектация!$C$3:$C$19))","v":0},{"$f":"SUMPRODUCT(Комплектация!$F$3:$AD$19*(Комплектация!$F$1:$AD$1=ноябрь_компл!$G30)*(ноябрь_компл!S$33=Комплектация!$C$3:$C$19))","v":0},{"$f":"SUMPRODUCT(Комплектация!$F$3:$AD$19*(Комплектация!$F$1:$AD$1=ноябрь_компл!$G30)*(ноябрь_компл!T$33=Комплектация!$C$3:$C$19))","v":0}]
[null,null,null,null,null,null,"итого ",{"$f":"SUMPRODUCT(Комплектация!$F$3:$AD$19*(Комплектация!$F$1:$AD$1=ноябрь_компл!$G31)*(ноябрь_компл!H$33=Комплектация!$C$3:$C$19))","v":0},{"$f":"SUMPRODUCT(Комплектация!$F$3:$AD$19*(Комплектация!$F$1:$AD$1=ноябрь_компл!$G31)*(ноябрь_компл!I$33=Комплектация!$C$3:$C$19))","v":0},{"$f":"SUMPRODUCT(Комплектация!$F$3:$AD$19*(Комплектация!$F$1:$AD$1=ноябрь_компл!$G31)*(ноябрь_компл!J$33=Комплектация!$C$3:$C$19))","v":0},{"$f":"SUMPRODUCT(Комплектация!$F$3:$AD$19*(Комплектация!$F$1:$AD$1=ноябрь_компл!$G31)*(ноябрь_компл!K$33=Комплектация!$C$3:$C$19))","v":0},{"$f":"SUMPRODUCT(Комплектация!$F$3:$AD$19*(Комплектация!$F$1:$AD$1=ноябрь_компл!$G31)*(ноябрь_компл!L$33=Комплектация!$C$3:$C$19))","v":0},{"$f":"SUMPRODUCT(Комплектация!$F$3:$AD$19*(Комплектация!$F$1:$AD$1=ноябрь_компл!$G31)*(ноябрь_компл!M$33=Комплектация!$C$3:$C$19))","v":0},{"$f":"SUMPRODUCT(Комплектация!$F$3:$AD$19*(Комплектация!$F$1:$AD$1=ноябрь_компл!$G31)*(ноябрь_компл!N$33=Комплектация!$C$3:$C$19))","v":0},{"$f":"SUMPRODUCT(Комплектация!$F$3:$AD$19*(Комплектация!$F$1:$AD$1=ноябрь_компл!$G31)*(ноябрь_компл!O$33=Комплектация!$C$3:$C$19))","v":0},{"$f":"SUMPRODUCT(Комплектация!$F$3:$AD$19*(Комплектация!$F$1:$AD$1=ноябрь_компл!$G31)*(ноябрь_компл!P$33=Комплектация!$C$3:$C$19))","v":0},{"$f":"SUMPRODUCT(Комплектация!$F$3:$AD$19*(Комплектация!$F$1:$AD$1=ноябрь_компл!$G31)*(ноябрь_компл!Q$33=Комплектация!$C$3:$C$19))","v":0},{"$f":"SUMPRODUCT(Комплектация!$F$3:$AD$19*(Комплектация!$F$1:$AD$1=ноябрь_компл!$G31)*(ноябрь_компл!R$33=Комплектация!$C$3:$C$19))","v":0},{"$f":"SUMPRODUCT(Комплектация!$F$3:$AD$19*(Комплектация!$F$1:$AD$1=ноябрь_компл!$G31)*(ноябрь_компл!S$33=Комплектация!$C$3:$C$19))","v":0},{"$f":"SUMPRODUCT(Комплектация!$F$3:$AD$19*(Комплектация!$F$1:$AD$1=ноябрь_компл!$G31)*(ноябрь_компл!T$33=Комплектация!$C$3:$C$19))","v":0}]
[null,"свр","гр","участок","обозначение","наименование","материал","применяемость"]
[null,null,null,null,null,null,null,"ФКГП 125.00.000","ФКГП 125.00.001","ФКГП 125.00.002","ФКГП 125.00.003","ФКГП 125.00.004","ФКГП 125.00.005","ФКГП 125.00.006","ФКГП 125.00.007","ФКГП 125.00.008","ФКГП 125.00.009","ФКГП 125.00.010","ФКГП 125.00.011","ФКГП 125.00.012"]
[]
[]
[]
[]
[]
[]
[]
[]
[null,null,null,4561,"ФКГП 125.05.045","планка ","БТ-ПВ-0-3",4,4,4,4,4,4,4,4,4,4,4,4,4]
[null,null,null,61,"ФКГП 125.05.045-01","планка  ","БТ-ПВ-0-3"]
[null,null,null,3061,"ФКГП 125.00.046","крючок  ","ПА-36",2,2,2,2,2,2,2,2,2,2,2,2,1]
[null,null,null,61,"ФКГП 125.00.048","подкладка ","ПЭНД =2,0",6,6,6,6,6,6,6,6,6,6,6,6,5]
[null,null,null,61,"ФКГП 125.00.048-01","подкладка ","ПЭНД =1,2",3,3,3,3,3,3,3,3,3,3,3,3,3]
[null,null,null,61,"ФКГП 125.00.049","подкладка ","БТ-ПН-0-1",2,2,2,2,2,2,2,2,2,2,2,2,1]
[null,null,null,400,"ФКГП 125.08.008","ролик   ","Труба 5 вх 0,5",3,3,3,3,3,3,3,3,3,3,3,3,2]
[null,null,null,30,"ФКГП 125.17.000-02","замок л.","RAL 1019",null,null,null,null,null,null,null,null,1,1,null,1]
[null,null,null,30,"ФКГП 125.17.000-03","замок пр.","RAL 1019",null,null,null,null,null,null,null,null,1,1,null,1]
[null,null,null,30,"ФКГП 125.17.000","замок л.","RAL 9005",1,1,1,1,1,1,1,1,null,null,1]
[null,null,null,30,"ФКГП 125.17.000-01","замок пр.","RAL 9005",1,1,1,1,1,1,1,1,null,null,1,null,1]
[null,null,null,null,"основание.в.сб..левое",null,"RAL 1019",null,null,null,null,null,null,null,null,1,1,null,1]
[null,null,null,null,"основание.в.сб..правое",null,"RAL 1019",null,null,null,null,null,null,null,null,1,1,null,1]
[null,null,null,10,"ФКГП 131.00.007","клапан ","RAL 1019",null,null,null,null,null,null,null,null,2,2,null,2]
[null,null,null,null,"основание.в.сб..левое",null,"RAL 9005",1,1,1,1,1,1,1,1,null,null,1]
[null,null,null,null,"основание.в.сб..правое",null,"RAL 9005",1,1,1,1,1,1,1,1,null,null,1,null,1]
[null,null,null,10,"ФКГП 131.00.007","клапан","RAL 9005",2,2,2,2,2,2,2,2,null,null,2,null,1]
[null,null,null,400,"ФКГП 125.08.009","пружина  ","Проволока Б-2-3,5",3,3,3,3,3,3,3,3,3,3,3,3,2]

{"sheet":"Лист1","index":3,"n_rows":21,"n_cols":8,"rows_kept":21,"cut":false,"hidden":true,"merged":[]}
[null,"заготовительный","механический","сварочный","Окраска","сборочный","заготовительный","заготовительный;механический;сварочный;сборочный"]
[{"$f":"#REF!","v":{"$error":"#REF!"}},"2016-07-12","2016-07-19T18:00:00","2016-07-20T18:00:00","2016-07-25T18:00:00","2016-07-15","механический"]
[{"$f":"#REF!","v":{"$error":"#REF!"}},"2016-07-19T18:00:00","2016-07-22T18:00:00","2016-07-22T18:00:00","2016-07-22","2016-07-22","сварочный"]
[null,null,null,null,null,null,"сборочный"]
[]
["2016-01-01","2016-03-06"]
["2016-01-02","2016-03-07"]
["2016-01-03","2016-03-08"]
["2016-01-04","2016-05-30"]
["2016-01-05","2016-05-01"]
["2016-01-06","2016-05-02"]
[null,"2016-05-03"]
["2016-01-07","2016-05-07"]
["2016-01-08","2016-05-08"]
["2016-01-09","2016-05-09"]
["2016-01-10","2016-06-11"]
["2016-02-20","2016-06-12"]
["2016-02-21","2016-06-13"]
["2016-02-22","2016-11-04"]
["2016-02-23","2016-11-05"]
["2016-12-31","2016-11-06"]